Workbook

Sheet RPV
B2: Ref | C2: Entrées | E2: Ref | H2: Inc | I2: Systoles | Q2: Diastoles | Z2: Calculs | AA2: Ref | AB2: Calc | AD2: 2 | AE2: 3
B3: 5500 | C3: Volémie | E3: 5500 | H3: 250 | I3: boucles | K3: V | L3: P | O3: V | P3: P | Q3: V | R3: P | S3: C | T3: Vo | U3: V | V3: P | W3: C | X3: Vo | Z3: Ets/Ea | AA3: =B8/B10 -> 2 | AB3: =Ets/Ea -> 2
B4: 660 | C4: Capacitance | E4: 660 | H4: 10 | I4: Ref | J4: fm | K4: =AA4 -> 124.5136418 | L4: =AA5 -> 5.615895019 | M4: Calc2 | N4: fm | O4: =AD4 -> 124.9262062 | P4: =AD5 -> 5.661085125 | Q4: =B9 -> 10 | R4: =EXP((0.33/S4)*(Q4-T4))-1 -> 0 | S4: =B7 -> 20 | T4: =B9 -> 10 | U4: =E9 -> 10 | V4: =EXP((0.33/W4)*(U4-X4))-1 -> 0 | W4: =E7 -> 20 | X4: =E9 -> 10 | Z4: VTD | AA4: =(B7*AA22)-(((B7*AA22)-47)*EXP(-AA23/(B6*B7))) -> 124.5136418 | AB4: =(Distensibilité*PSM)-(((Distensibilité*PSM)-VTS)*EXP(-t/(ResVein*Distensibilité))) -> 124.9810934 | AD4: =(E7*AB22)-(((E7*AB22)-AA6)*EXP(-AB23/(E6*E7))) -> 124.9262062 | AE4: =(E7*AB22)-(((E7*AB22)-AD6)*EXP(-AB23/(E6*E7))) -> 124.9746487
B5: 45 | C5: Hématocrite | E5: 45 | H5: 5 | J5: os | K5: =AA4 -> 124.5136418 | L5: =AA7 -> 114.5136418 | N5: os | O5: =AD4 -> 124.9262062 | P5: =AD7 -> 114.9262062 | Q5: =Q4+25 -> 35 | R5: 0.5105895423 | S5: =RPV!$S$4 -> 20 | T5: =RPV!$T$4 -> 10 | U5: =U4+25 -> 35 | V5: 0.5105895423 | W5: =RPV!$W$4:$X$4 -> 20 | X5: 10 | Z5: PTD | AA5: =EXP((0.33/B7)*(AA4-B9))-1 -> 5.615895019 | AB5: =EXP((0.33/Distensibilité)*(VTD-Vo))-1 -> 5.667120393 | AD5: =EXP((0.33/E7)*(AD4-E9))-1 -> 5.661085125 | AE5: =EXP((0.33/E7)*(AE4-E9))-1 -> 5.666411462
B6: 0.02875205572 | C6: Res. veineuses | E6: =0.0004*EXP(0.095*E5) -> 0.02875205572 | J6: fs | K6: =AA6 -> 48.17121394 | L6: =AA7 -> 114.5136418 | N6: fs | O6: =AD6 -> 48.30873541 | P6: =AD7 -> 114.9262062 | Q6: 60 | R6: 1.281880765 | S6: =RPV!$S$4 -> 20 | T6: =RPV!$T$4 -> 10 | U6: 60 | V6: 1.281880765 | W6: 20 | X6: 10 | Z6: VTS | AA6: =((B10*AA4)+(B8*B9))/(B8+B10) -> 48.17121394 | AB6: =((Ea*VTD)+(Ets*Vo))/(Ets+Ea) -> 48.32703114 | AD6: =((E10*AD4)+(E8*E9))/(E8+E10) -> 48.30873541 | AE6: =((E10*AE4)+(E8*E9))/(E8+E10) -> 48.3248829
B7: 20 | C7: Distensibilité | E7: 20 | H7: 1 | J7: om | K7: =AA6 -> 48.17121394 | L7: =EXP((0.33/B7)*(K7-B9))-1 -> 0.8772820824 | N7: om | O7: =AD6 -> 48.30873541 | P7: =EXP((0.33/E7)*(O7-E9))-1 -> 0.881546668 | Q7: 85 | R7: 2.446985221 | S7: =RPV!$S$4 -> 20 | T7: =RPV!$T$4 -> 10 | U7: 85 | V7: 2.446985221 | W7: 20 | X7: 10 | Z7: PTS | AA7: =B10*(AA4-AA6) -> 114.5136418 | AB7: =Ea*(VTD-VTS) -> 114.9810934 | AD7: =E10*(AD4-AD6) -> 114.9262062 | AE7: =E10*(AE4-AE6) -> 114.9746487
B8: 3 | C8: Ets | E8: 3 | H8: 4 | J8: d1 | K8: =AA6+(AA8/3) -> 73.6186899 | L8: =EXP((0.33/B7)*(K8-B9))-1 -> 1.856817901 | N8: d1 | O8: =AD6+(AD8/3) -> 73.84789236 | P8: =EXP((0.33/E7)*(O8-E9))-1 -> 1.867642386 | Q8: 110 | R8: 4.206979827 | S8: =RPV!$S$4 -> 20 | T8: =RPV!$T$4 -> 10 | U8: 110 | V8: 4.206979827 | W8: 20 | X8: 10 | Z8: VES | AA8: =AA4-AA6 -> 76.34242788 | AB8: =VTD-VTS -> 76.65406229 | AD8: =AD4-AD6 -> 76.61747083 | AE8: =AE4-AE6 -> 76.64976579
B9: 10 | C9: Vo | E9: 10 | H9: 10 | J9: d2 | K9: =AA6+(2*AA8/3) -> 99.06616585 | L9: =EXP((0.33/B7)*(K9-B9))-1 -> 3.34745987 | N9: d2 | O9: =AD6+(2*AD8/3) -> 99.3870493 | P9: =EXP((0.33/E7)*(O9-E9))-1 -> 3.370538873 | Q9: 135 | R9: 6.865609274 | S9: =RPV!$S$4 -> 20 | T9: =RPV!$T$4 -> 10 | U9: 135 | V9: 6.865609274 | W9: 20 | X9: 10 | Z9: FE | AA9: =AA8/AA4 -> 0.6131250099 | AB9: =VES/VTD -> 0.6133252653 | AD9: =AD8/AD4 -> 0.6133018294 | AE9: =AE8/AE4 -> 0.6133225146
B10: 1.5 | C10: Ea | E10: =RVS*FC/1000 -> 1.5 | H10: 1 | J10: fm | K10: =K4 -> 124.5136418 | L10: =L4 -> 5.615895019 | N10: fm | O10: =O4 -> 124.9262062 | P10: =P4 -> 5.661085125 | Q10: 160 | R10: 10.88170711 | S10: =RPV!$S$4 -> 20 | T10: =RPV!$T$4 -> 10 | U10: 160 | V10: 10.88170711 | W10: 20 | X10: 10 | Z10: Qc | AA10: =AA8*B12/1000 -> 5.725682091 | AB10: =VES*FC/1000 -> 5.749054671 | AD10: =AD8*E12/1000 -> 5.746310312 | AE10: =AE8*E12/1000 -> 5.748732435
B11: 20 | C11: RVS | E11: 20 | H11: 20 | J11: Vo | K11: =B9 -> 10 | L11: 0 | Q11: 185 | R11: 16.94838251 | S11: =RPV!$S$4 -> 20 | T11: =RPV!$T$4 -> 10 | U11: 185 | V11: 16.94838251 | W11: 20 | X11: 10 | Z11: WE | AA11: =(AA8*(AA7-(0.5*AA5)))*0.0001333 -> 1.136766925 | AB11: =(VES*(PTS-(0.5*PTD)))*0.0001333 -> 1.145921981 | AD11: =(AD8*(AD7-(0.5*AD5)))*0.0001333 -> 1.144845216 | AE11: =(AE8*(AE7-(0.5*AE5)))*0.0001333 -> 1.145795525
B12: 75 | C12: FC | E12: 75 | H12: 5 | J12: ETS | K12: =(L12+(B8*B9))/B8 -> 93.33333333 | L12: 250 | N12: V | O12: P | Q12: 210 | R12: 26.11263892 | S12: =RPV!$S$4 -> 20 | T12: =RPV!$T$4 -> 10 | U12: 210 | V12: 26.11263892 | W12: 20 | X12: 10 | Z12: APV | AA12: =(AA11+(0.5*(AA6-B9)*AA7*0.0001333)) -> 1.428102388 | AB12: =(WE+(0.5*(VTS-Vo)*PTS*0.0001333)) -> 1.439640796 | AD12: =(AD11+(0.5*(AD6-E9)*AD7*0.0001333)) -> 1.43828368 | AE12: =(AE11+(0.5*(AE6-E9)*AE7*0.0001333)) -> 1.439481415
J13: VTD | K13: =AA4 -> 124.5136418 | L13: 0 | N13: 150 | O13: 150 | Q13: 235 | R13: 39.95606882 | S13: =RPV!$S$4 -> 20 | T13: =RPV!$T$4 -> 10 | U13: 235 | V13: 39.95606882 | W13: 20 | X13: 10 | Z13: MVO2 | AA13: =(2.5*AA12)+(0.3*B8)+1 -> 5.47025597 | AB13: =(2.5*APV)+(0.3*Ets)+1 -> 5.49910199 | AD13: =(2.5*AD12)+(0.3*E8)+1 -> 5.4957092 | AE13: =(2.5*AE12)+(0.3*E8)+1 -> 5.498703537
B14: Vol. | C14: =(E3-B3)/B3*100 -> 0 | J14: Ea | K14: 0 | L14: =B10*AA4 -> 186.7704627 | Q14: 260 | R14: 60.86780925 | S14: =RPV!$S$4 -> 20 | T14: =RPV!$T$4 -> 10 | U14: 260 | V14: 60.86780925 | W14: 20 | X14: 10 | Z14: Rd | AA14: =AA11/AA13 -> 0.2078087262 | AB14: =WE/_MVO2 -> 0.2083834748 | AD14: =AD11/AD13 -> 0.2083161926 | AE14: =AE11/AE13 -> 0.2083755774
B15: Capac. | C15: =(E4-B4)/B4*100 -> 0 | I15: Calc1 | J15: fm | K15: =AB4 -> 124.9810934 | L15: =AB5 -> 5.667120393 | M15: Calc3 | N15: fm | O15: =AE4 -> 124.9746487 | P15: =AE5 -> 5.666411462 | Q15: 285 | R15: 92.45686566 | S15: =RPV!$S$4 -> 20 | T15: =RPV!$T$4 -> 10 | U15: 285 | V15: 92.45686566 | W15: 20 | X15: 10 | Z15: TaO2 | AA15: =AA10*B5*1.34/0.3 -> 1150.8621 | AB15: =Qc*Hte*1.34/0.3 -> 1155.559989
B16: PSM | C16: =(AB22-AA22)/AA22*100 -> 0 | J16: os | K16: =AB4 -> 124.9810934 | L16: =AB7 -> 114.9810934 | N16: os | O16: =AE4 -> 124.9746487 | P16: =AE7 -> 114.9746487 | Q16: 310 | R16: 140.1749639 | S16: =RPV!$S$4 -> 20 | T16: =RPV!$T$4 -> 10 | U16: 310 | V16: 140.1749639 | W16: 20 | X16: 10
B17: Hte | C17: =(E5-B5)/B5*100 -> 0 | J17: fs | K17: =AB6 -> 48.32703114 | L17: =AB7 -> 114.9810934 | N17: fs | O17: =AE6 -> 48.3248829 | P17: =AE7 -> 114.9746487 | Q17: 335 | R17: 212.2574241 | S17: =RPV!$S$4 -> 20 | T17: =RPV!$T$4 -> 10 | U17: 335 | V17: 212.2574241 | W17: 20 | X17: 10
B18: R vein. | C18: =(E6-B6)/B6*100 -> 0 | J18: om | K18: =AB6 -> 48.32703114 | L18: =EXP((0.33/E7)*(K18-E9))-1 -> 0.8821147541 | N18: om | O18: =AE6 -> 48.3248829 | P18: =EXP((0.33/E7)*(O18-E9))-1 -> 0.8820480417 | Q18: 360 | R18: 321.1444347 | S18: =RPV!$S$4 -> 20 | T18: =RPV!$T$4 -> 10 | U18: 360 | V18: 321.1444347 | W18: 20 | X18: 10 | Z18: georgesmion.com
B19: Ets | C19: =(E8-B8)/B8*100 -> 0 | J19: d1 | K19: =AB6+(AB8/3) -> 73.87838524 | L19: =EXP((0.33/E7)*(K19-E9))-1 -> 1.869085553 | N19: d1 | O19: =AE6+(AE8/3) -> 73.87480483 | P19: =EXP((0.33/E7)*(O19-E9))-1 -> 1.868916062 | Q19: 385 | R19: 485.6280142 | S19: =RPV!$S$4 -> 20 | T19: =RPV!$T$4 -> 10 | U19: 385 | V19: 485.6280142 | W19: 20 | X19: 10
B20: Ea | C20: =(E10-B10)/B10*100 -> 0 | J20: d2 | K20: =AB6+(2*AB8/3) -> 99.42973933 | L20: =EXP((0.33/E7)*(K20-E9))-1 -> 3.373618502 | N20: d2 | O20: =AE6+(2*AE8/3) -> 99.42472676 | P20: =EXP((0.33/E7)*(O20-E9))-1 -> 3.373256786 | Q20: 410 | R20: =EXP((0.33/S20)*(Q20-T20))-1 -> 734.0951892 | S20: =RPV!$S$4 -> 20 | T20: =RPV!$T$4 -> 10 | U20: 410 | V20: =EXP((0.33/W20)*(U20-X20))-1 -> 734.0951892 | W20: 20 | X20: 10
B21: Ets / Ea | C21: =(AB3-AA3)/AA3*100 -> 0 | J21: fm | K21: =K15 -> 124.9810934 | L21: =L15 -> 5.667120393 | N21: fm | O21: =O15 -> 124.9746487 | P21: =P15 -> 5.666411462 | Q21: =Q20+25 -> 435 | R21: =EXP((0.33/S21)*(Q21-T21))-1 -> 1109.427105 | S21: =RPV!$S$4 -> 20 | T21: =RPV!$T$4 -> 10 | U21: =U20+25 -> 435 | V21: =EXP((0.33/W21)*(U21-X21))-1 -> 1109.427105 | W21: 20 | X21: 10
B22: FC | C22: =(E12-B12)/B12*100 -> 0 | J22: Vo | K22: =E9 -> 10 | L22: 0 | Z22: PSM | AA22: =B3/B4 -> 8.333333333 | AB22: =Volémie/Capacitance -> 8.333333333
B23: VES | C23: =(AB8-AA8)/AA8*100 -> 0.4082060521 | J23: ETS | K23: =(L23+(E8*E9))/E8 -> 93.33333333 | L23: 250 | Z23: t | AA23: =(60/B12)-0.2 -> 0.6 | AB23: =(60/FC)-0.2 -> 0.6
B24: Qc | C24: =(AB10-AA10)/AA10*100 -> 0.4082060521 | J24: VTD | K24: =AB4 -> 124.9810934 | L24: 0
B25: FE | C25: =(AB9-AA9)/AA9*100 -> 0.03266142429 | J25: Ea | K25: 0 | L25: =E10*AB4 -> 187.4716401 | AA25: VTD | AB25: VES
B26: Rd | C26: =(AB14-AA14)/AA14*100 -> 0.2765757486 | Z26: Calc 1 | AA26: =AB4 -> 124.9810934 | AB26: =AB8 -> 76.65406229
Z27: Calc 2 | AA27: =AD4 -> 124.9262062 | AB27: =AD8 -> 76.61747083
Z28: Calc 3 | AA28: =AE4 -> 124.9746487 | AB28: =AE8 -> 76.64976579
Z29: Ref 1 | AA29: 35.70451555 | AB29: 17.1363437
Z30: Ref 2 | AA30: 189.8884183 | AB30: 119.9256122 | AG30: https://dons.restosducoeur.org/

Sheet Formules (hidden)
A1: Paramètres d'entrée du système | C1: Paramètres de sortie
A3: Volémie | B3: Pression systémique moyenne | C3: PSM | D3: Volémie/Capacitance
A4: Capacitance : Compliance du système capacitif | C4: R veineuses | D4: 0,0004 x EXP(0,0952 x Hte)
A5: Hématocrite | B5: tps de remplissage diastolique | C5: t | D5: (60/FC)-0,2
A6: Résistances veineuses : fction Hte | C6: VTD | D6: (PSMxCvg)-(((PSMxCvg)-VTS)xEXP(-t/(RxCvg)))
A7: Distensibilité VG : Compliance VG | C7: PTD | D7: EXP((0,33/distensibilité)x(VTD-Vo))-1
A8: contractilité : Ets : élastance télésystolique | C8: VTS | D8: ( (Ea x VTD)+ (ETS x Vo) ) / (ETS+Ea)
A9: Vo : volume intercept de la relation PV | C9: PTS | D9: Ea x VES
A10: Ea : Elastance artérielle effective = RVS x FC | C10: VES | D10: VTD - VTS
C11: FE | D11: VES / VTD
C12: Qc | D12: VESxFC/1000
C13: RVS | D13: 3,444 x EXP (0,0385 x Hte)
C14: WE(J) | D14: VES x ( PTS - (PTD/2) )
C15: APV | D15: WE + (1/2 (VTS-Vo) x PTS)
C16: MVO2 | D16: (2,5 x APV) + (0,3 x ETS) + 1
C17: Rd | D17: WE / MVO2
C18: conversion | D18: 1 mmHg.ml = 1,333 x 10-4 J

Sheet Exp
C2: H | D2: 10 | E2: 45 | F2: 70 | J2: H | K2: 10 | L2: 45 | M2: 70
C3: R | D3: 5 | E3: 20 | F3: 50 | J3: R | K3: 0.001 | L3: 0.03 | M3: 0.3
